[Event "CRO-ch 2019"]
[Site "Bjelovar"]
[Date "2019.04.06"]
[Round "6.2"]
[White "Zelcic, Robert"]
[Black "Stevic, Hrvoje"]
[Result "1/2-1/2"]
[ECO "E66"]
[WhiteElo "2520"]
[BlackElo "2586"]
[Annotator "ChessBase"]
[PlyCount "24"]
[EventDate "2019.04.01"]
[EventType "tourn"]
[EventCountry "CRO"]
[SourceTitle "playchess.com"]
[Source "ChessBase"]
[SourceQuality "1"]
[TimeControl "40/5400+30:1800+30"]

1. d4 {[%emt 0:00:30]} Nf6 {[%emt 0:00:30]} 2. Nf3 {[%emt 0:00:00]} g6 {[%emt 0:00:00]} 3. g3 {[%emt 0:00:00]} Bg7 {[%emt 0:00:00]} 4. Bg2 {[%emt 0:00:00]} O-O {[%emt 0:00:00]} 5. O-O {[%emt 0:00:00]} d6 {[%emt 0:00:00]} 6. c4 {[%emt 0:00:00]} c5 {[%emt 0:00:00]} 7. Nc3 {[%emt 0:00:00]} Nc6 {[%emt 0:00:00]} 8. d5 {[%emt 0:00:30]} Na5 {[%emt 0:00:30]} 9. Qd3 {[%emt 0:00:30]} e5 {[%emt 0:00:30]} 10. e4 {[%emt 0:00:30]} Ne8 {[%emt 0:00:30]} 11. Bg5 {[%emt 0:02:30]} f6 {[%emt 0:00:00]} 12. Bd2 {[%emt 0:00:00]} a6 {[%emt 0:00:00]} 1/2-1/2

[Event "CRO-ch 2019"]
[Site "Bjelovar"]
[Date "2019.04.06"]
[Round "6.4"]
[White "Brkic, Ante"]
[Black "Kozul, Zdenko"]
[Result "1/2-1/2"]
[ECO "B56"]
[WhiteElo "2560"]
[BlackElo "2589"]
[Annotator "ChessBase"]
[PlyCount "70"]
[EventDate "2019.04.01"]
[EventType "tourn"]
[EventCountry "CRO"]
[SourceTitle "playchess.com"]
[Source "ChessBase"]
[SourceQuality "1"]
[TimeControl "40/5400+30:1800+30"]

1. e4 {[%emt 0:00:30]} c5 {[%emt 0:00:30]} 2. Nf3 {[%emt 0:00:00]} Nc6 {[%emt 0:00:00]} 3. d4 {[%emt 0:00:00]} cxd4 {[%emt 0:00:00]} 4. Nxd4 {[%emt 0:00:30]} Nf6 {[%emt 0:01:30]} 5. Nc3 {[%emt 0:00:00]} d6 {[%emt 0:00:00]} 6. f3 {[%emt 0:00:00]} Nxd4 {[%emt 0:05:00]} 7. Qxd4 {[%emt 0:00:00]} g6 {[%emt 0:00:00]} 8. Bg5 {[%emt 0:05:00]} Bg7 {[%emt 0:03:00]} 9. Bb5+ {[%emt 0:00:30]} Bd7 {[%emt 0:00:30]} 10. Bxd7+ {[%emt 0:00:30]} Qxd7 {[%emt 0:00:30]} 11. O-O-O {[%emt 0:00:30]} h6 {[%emt 0:17:30]} 12. Bh4 {[%emt 0:07:30]} Nh5 {[%emt 0:05:30]} 13. Qe3 {[%emt 0:15:30]} g5 {[%emt 0:08:30]} 14. Bf2 {[%emt 0:13:30]} Nf4 {[%emt 0:02:30]} 15. g3 {[%emt 0:06:30]} Bxc3 {[%emt 0:08:30]} 16. gxf4 {[%emt 0:00:00]} Bf6 {[%emt 0:00:30]} 17. f5 {[%emt 0:03:00]} Qb5 {[%emt 0:02:30]} 18. c3 {[%emt 0:04:30]} Rc8 {[%emt 0:02:30]} 19. Rd5 {[%emt 0:10:30]} Qc4 {[%emt 0:00:30]} 20. Kb1 {[%emt 0:01:30]} b6 {[%emt 0:02:30]} 21. Rhd1 {[%emt 0:07:30]} Rc5 {[%emt 0:11:30]} 22. Rxc5 {[%emt 0:02:30]} bxc5 {[%emt 0:00:30]} 23. Bg3 {[%emt 0:01:30]} Qa4 {[%emt 0:05:30]} 24. Re1 {[%emt 0:03:24]} O-O {[%emt 0:00:30]} 25. f4 {[%emt 0:00:15]} Rb8 {[%emt 0:05:07]} 26. e5 {[%emt 0:01:18]} gxf4 {[%emt 0:00:47]} 27. Bxf4 {[%emt 0:00:25]} dxe5 {[%emt 0:00:37]} 28. Bxe5 {[%emt 0:01:39]} Rd8 {[%emt 0:02:20]} 29. Qg1+ {[%emt 0:08:12]} Bg5 {[%emt 0:05:17]} 30. b3 {[%emt 0:00:01]} Qh4 {[%emt 0:00:39]} 31. Qg3 {[%emt 0:02:24]} Qh5 {[%emt 0:01:15]} 32. Bf4 {[%emt 0:00:30]} Rd1+ {[%emt 0:03:18]} 33. Rxd1 {[%emt 0:00:02]} Qxd1+ {[%emt 0:00:07]} 34. Kb2 {[%emt 0:00:00]} Qe2+ {[%emt 0:00:08]} 35. Ka3 {[%emt 0:00:01]} Qa6+ {[%emt 0:02:34]} 1/2-1/2

[Event "CRO-ch 2019"]
[Site "Bjelovar"]
[Date "2019.04.07"]
[Round "7.2"]
[White "Jovanovic, Zoran"]
[Black "Kovacevic, Blazimir"]
[Result "1/2-1/2"]
[ECO "B15"]
[WhiteElo "2511"]
[BlackElo "2475"]
[Annotator "ChessBase"]
[PlyCount "31"]
[EventDate "2019.04.01"]
[EventType "tourn"]
[EventCountry "CRO"]
[SourceTitle "playchess.com"]
[Source "ChessBase"]
[SourceQuality "1"]
[TimeControl "40/5400+30:1800+30"]

1. e4 {[%emt 0:03:30]} c6 {[%emt 0:00:30]} 2. Nc3 {[%emt 0:01:30]} d5 {[%emt 0:00:00]} 3. Nf3 {[%emt 0:00:00]} g6 {[%emt 0:00:00]} 4. d4 {[%emt 0:01:00]} Bg7 {[%emt 0:00:30]} 5. Bf4 {[%emt 0:02:30]} dxe4 {[%emt 0:00:30]} 6. Nxe4 {[%emt 0:01:30]} Nf6 {[%emt 0:00:30]} 7. Bd3 {[%emt 0:12:30]} O-O {[%emt 0:06:30]} 8. c3 {[%emt 0:05:30]} Nxe4 {[%emt 0:16:30]} 9. Bxe4 {[%emt 0:00:30]} Nd7 {[%emt 0:00:00]} 10. O-O {[%emt 0:15:30]} c5 {[%emt 0:11:00]} 11. d5 {[%emt 0:03:30]} Nf6 {[%emt 0:07:30]} 12. Re1 {[%emt 0:02:30]} b6 {[%emt 0:04:30]} 13. Ne5 {[%emt 0:09:30]} Nxe4 {[%emt 0:05:30]} 14. Rxe4 {[%emt 0:00:30]} e6 {[%emt 0:03:30]} 15. dxe6 {[%emt 0:08:30]} Qxd1+ {[%emt 0:04:30]} 16. Rxd1 {[%emt 0:00:30]} 1/2-1/2

[Event "CRO-ch 2019"]
[Site "Bjelovar"]
[Date "2019.04.07"]
[Round "7.5"]
[White "Stevic, Hrvoje"]
[Black "Kurajica, Bojan"]
[Result "1-0"]
[ECO "B22"]
[WhiteElo "2586"]
[BlackElo "2522"]
[Annotator "ChessBase"]
[PlyCount "83"]
[EventDate "2019.04.01"]
[EventType "tourn"]
[EventCountry "CRO"]
[SourceTitle "playchess.com"]
[Source "ChessBase"]
[SourceQuality "1"]
[TimeControl "40/5400+30:1800+30"]

1. e4 {[%emt 0:00:30]} c5 {[%emt 0:01:30]} 2. Nf3 {[%emt 0:00:00]} e6 {[%emt 0:00:30]} 3. c3 {[%emt 0:00:00]} Nf6 {[%emt 0:01:30]} 4. e5 {[%emt 0:00:30]} Nd5 {[%emt 0:00:00]} 5. Bc4 {[%emt 0:00:00]} Nb6 {[%emt 0:02:00]} 6. Bb3 {[%emt 0:00:00]} c4 {[%emt 0:00:30]} 7. Bc2 {[%emt 0:00:30]} d6 {[%emt 0:00:30]} 8. exd6 {[%emt 0:15:30]} Bxd6 {[%emt 0:04:30]} 9. O-O {[%emt 0:00:00]} Nc6 {[%emt 0:01:30]} 10. d3 {[%emt 0:03:00]} cxd3 {[%emt 0:05:30]} 11. Qxd3 {[%emt 0:00:30]} Ne5 {[%emt 0:01:30]} 12. Nxe5 {[%emt 0:03:30]} Bxe5 {[%emt 0:00:30]} 13. Qh3 {[%emt 0:01:30]} Qc7 {[%emt 0:09:30]} 14. Nd2 {[%emt 0:01:30]} Bd7 {[%emt 0:03:30]} 15. Nf3 {[%emt 0:00:30]} Bf6 {[%emt 0:01:30]} 16. Ng5 {[%emt 0:14:30]} h6 {[%emt 0:04:30]} 17. Ne4 {[%emt 0:04:30]} Be7 {[%emt 0:00:00]} 18. Qg4 {[%emt 0:16:30]} g6 {[%emt 0:06:00]} 19. Qf4 {[%emt 0:09:30]} e5 {[%emt 0:21:30]} 20. Nf6+ {[%emt 0:00:30]} Kd8 {[%emt 0:00:30]} 21. Qf3 {[%emt 0:00:00]} Bc6 {[%emt 0:00:30]} 22. Be4 {[%emt 0:15:36]} Bxe4 {[%emt 0:00:30]} 23. Rd1+ {[%emt 0:00:04]} Kc8 {[%emt 0:00:00]} 24. Nxe4 {[%emt 0:00:03]} f5 {[%emt 0:00:00]} 25. Nd2 {[%emt 0:04:44]} Rd8 {[%emt 0:06:30]} 26. Re1 {[%emt 0:00:32]} Nd7 {[%emt 0:08:30]} 27. Qg3 {[%emt 0:03:11]} Rg8 {[%emt 0:07:56]} 28. Nf3 {[%emt 0:01:28]} g5 {[%emt 0:01:57]} 29. Nxe5 {[%emt 0:01:12]} Bd6 {[%emt 0:01:24]} 30. f4 {[%emt 0:00:09]} Bxe5 {[%emt 0:03:02]} 31. fxe5 {[%emt 0:00:02]} Re8 {[%emt 0:00:03]} 32. Qh3 {[%emt 0:01:42]} Rxe5 {[%emt 0:00:15]} 33. Be3 {[%emt 0:00:02]} Qc6 {[%emt 0:02:41]} 34. Bd4 {[%emt 0:03:10]} Rxe1+ {[%emt 0:00:15]} 35. Rxe1 {[%emt 0:00:01]} Qg6 {[%emt 0:00:05]} 36. Qd3 {[%emt 0:02:03]} Kc7 {[%emt 0:00:21]} 37. Re7 {[%emt 0:00:08]} Rd8 {[%emt 0:00:57]} 38. g4 {[%emt 0:00:17]} Qa6 {[%emt 0:02:28]} 39. Qxa6 {[%emt 0:00:44]} bxa6 {[%emt 0:00:03]} 40. gxf5 {[%emt 0:00:00]} Rf8 {[%emt 0:00:00]} 41. f6 {[%emt 0:01:22]} Kd6 {[%emt 0:01:03]} 42. Rh7 {[%emt 0:00:30]} 1-0

[Event "CRO-ch 2019"]
[Site "Bjelovar"]
[Date "2019.04.09"]
[Round "9.1"]
[White "Jovanovic, Zoran"]
[Black "Bosiocic, Marin"]
[Result "1/2-1/2"]
[ECO "C48"]
[WhiteElo "2511"]
[BlackElo "2613"]
[Annotator "ChessBase"]
[PlyCount "119"]
[EventDate "2019.04.01"]
[EventType "tourn"]
[EventCountry "CRO"]
[SourceTitle "playchess.com"]
[Source "ChessBase"]
[SourceQuality "1"]
[TimeControl "40/5400+30:1800+30"]

1. e4 e5 2. Nf3 Nc6 3. Nc3 Nf6 4. Bb5 Bd6 5. d3 O-O 6. Bg5 Be7 7. O-O d6 8. Bxc6 bxc6 9. d4 Nd7 10. Bxe7 Qxe7 11. Re1 f6 12. Ne2 Re8 13. Ng3 Nf8 14. Qd3 Be6 15. Qc3 Qd7 16. Rad1 Ng6 17. Nd2 a5 18. Nc4 a4 19. b3 Ra6 20. Ne3 Rea8 21. Ne2 Qc8 22. Rf1 Nf4 23. Qd2 axb3 24. axb3 Ra2 25. Nc3 R2a5 26. Ne2 Qe8 27. d5 Nxe2+ 28. Qxe2 cxd5 29. exd5 Bd7 30. Qd2 Ra2 31. Qc3 Bb5 32. Rfe1 Qf7 33. Ra1 f5 34. Rxa2 Rxa2 35. Qb4 Be8 36. f4 exf4 37. Qxf4 Bd7 38. Rf1 {[%emt 1:37:20]} h6 {[%emt 1:28:00]} 39. h4 {[%emt 0:00:30]} Kh7 {[%emt 0:03:24]} 40. g4 {[%emt 0:00:00]} Qg6 {[%emt 0:00:00]} 41. h5 {[%emt 0:07:40]} Qe8 {[%emt 0:04:06]} 42. gxf5 {[%emt 0:05:30]} Qxh5 {[%emt 0:01:30]} 43. Qe4 {[%emt 0:06:30]} Ra8 {[%emt 0:04:30]} 44. f6+ {[%emt 0:01:30]} Qg6+ {[%emt 0:00:30]} 45. Qxg6+ {[%emt 0:00:00]} Kxg6 {[%emt 0:00:00]} 46. fxg7 {[%emt 0:00:00]} Kxg7 {[%emt 0:00:00]} 47. Rf4 {[%emt 0:00:30]} Re8 {[%emt 0:01:30]} 48. Kf2 {[%emt 0:00:00]} Rf8 {[%emt 0:00:30]} 49. Kg3 {[%emt 0:06:56]} Rxf4 {[%emt 0:00:30]} 50. Kxf4 {[%emt 0:00:02]} Kf6 {[%emt 0:00:30]} 51. c4 {[%emt 0:00:22]} h5 {[%emt 0:00:30]} 52. Ng2 {[%emt 0:04:38]} Bh3 {[%emt 0:00:30]} 53. Nh4 {[%emt 0:00:18]} Bf1 {[%emt 0:00:30]} 54. Nf5 {[%emt 0:00:19]} Bh3 {[%emt 0:04:30]} 55. Nh4 {[%emt 0:01:44]} Bg4 {[%emt 0:03:30]} 56. b4 {[%emt 0:00:17]} Be2 {[%emt 0:00:30]} 57. c5 {[%emt 0:00:08]} Bd3 {[%emt 0:02:30]} 58. cxd6 {[%emt 0:00:21]} cxd6 {[%emt 0:00:30]} 59. b5 {[%emt 0:00:03]} Bxb5 {[%emt 0:01:30]} 60. Ke4 {[%emt 0:00:47]} 1/2-1/2

[Event "CRO-ch 2019"]
[Site "Bjelovar"]
[Date "2019.04.09"]
[Round "9.4"]
[White "Stevic, Hrvoje"]
[Black "Saric, Ante"]
[Result "1/2-1/2"]
[ECO "C42"]
[WhiteElo "2586"]
[BlackElo "2530"]
[Annotator "RC"]
[PlyCount "48"]
[EventDate "2019.04.01"]
[EventType "tourn"]
[EventCountry "CRO"]
[SourceTitle "playchess.com"]
[Source "ChessBase"]
[SourceQuality "1"]
[TimeControl "40/5400+30:1800+30"]

1. e4 e5 2. Nf3 Nf6 3. Nxe5 d6 4. Nf3 Nxe4 5. d4 d5 6. Bd3 Nc6 7. O-O Be7 8. Re1 Bg4 9. c4 Nf6 10. Nc3 Nxd4 11. cxd5 Bxf3 12. gxf3 c5 13. d6 Qxd6 14. Nb5 Nxb5 15. Bxb5+ Kf8 16. Qe2 h6 17. Bf4 Qxf4 18. Qxe7+ Kg8 19. Rad1 h5 20. Rd6 c4 21. Ba4 Qxf3 22. Bc2 Qg4+ 23. Kf1 Qh3+ 24. Kg1 Qg4+ 1/2-1/2

[Event "CRO-ch 2019"]
[Site "Bjelovar"]
[Date "2019.04.09"]
[Round "9.6"]
[White "Zelcic, Robert"]
[Black "Kurajica, Bojan"]
[Result "1/2-1/2"]
[ECO "B45"]
[WhiteElo "2520"]
[BlackElo "2522"]
[Annotator "ChessBase"]
[PlyCount "82"]
[EventDate "2019.04.01"]
[EventType "tourn"]
[EventCountry "CRO"]
[SourceTitle "playchess.com"]
[Source "ChessBase"]
[SourceQuality "1"]
[TimeControl "40/5400+30:1800+30"]

1. e4 c5 2. Nf3 e6 3. Nc3 Nc6 4. d4 cxd4 5. Nxd4 Nf6 6. Ndb5 Bb4 7. a3 Bxc3+ 8. Nxc3 d5 9. exd5 Nxd5 10. Nxd5 exd5 11. Be2 O-O 12. O-O Bf5 13. Bd3 Qf6 14. c3 Bxd3 15. Qxd3 d4 16. Bd2 Rfd8 17. Qb5 h6 18. Rae1 Rd7 19. Re4 Rad8 20. Rfe1 Kh7 21. h4 Rd5 22. Qe2 b5 23. Qg4 Qg6 24. Qh3 h5 25. Bg5 f6 26. Re6 dxc3 27. Qxc3 Nd4 28. Ra6 Re8 29. Kh2 Rxe1 30. Qxe1 {[%emt 1:36:47]} Qf5 {[%emt 1:28:52]} 31. Bxf6 {[%emt 0:00:30]} Qf4+ {[%emt 0:03:38]} 32. Kg1 {[%emt 0:00:20]} gxf6 {[%emt 0:08:11]} 33. Qe7+ {[%emt 0:02:09]} Kg6 {[%emt 0:00:41]} 34. Qe8+ {[%emt 0:01:51]} Kh6 {[%emt 0:01:35]} 35. Qh8+ {[%emt 0:02:42]} Kg6 {[%emt 0:00:03]} 36. Qg8+ {[%emt 0:00:04]} Kh6 {[%emt 0:00:04]} 37. Qf8+ {[%emt 0:02:30]} Kg6 {[%emt 0:00:06]} 38. Qg8+ {[%emt 0:00:23]} Kh6 {[%emt 0:00:06]} 39. Qxd5 {[%emt 0:01:28]} Qc1+ {[%emt 0:00:09]} 40. Kh2 {[%emt 0:00:00]} Qf4+ {[%emt 0:00:00]} 41. Kg1 {[%emt 0:15:53]} Qc1+ {[%emt 0:01:05]} 1/2-1/2

[Event "CRO-ch 2019"]
[Site "Bjelovar"]
[Date "2019.04.10"]
[Round "10.1"]
[White "Bosiocic, Marin"]
[Black "Kurajica, Bojan"]
[Result "1-0"]
[ECO "B45"]
[WhiteElo "2613"]
[BlackElo "2522"]
[Annotator "RC"]
[PlyCount "125"]
[EventDate "2019.04.01"]
[EventType "tourn"]
[EventCountry "CRO"]
[SourceTitle "playchess.com"]
[Source "ChessBase"]
[SourceQuality "1"]
[TimeControl "40/5400+30:1800+30"]

1. e4 {[%emt 0:00:30]} c5 {[%emt 0:00:30]} 2. Nf3 {[%emt 0:00:00]} e6 {[%emt 0:00:00]} 3. d4 {[%emt 0:00:00]} cxd4 {[%emt 0:00:00]} 4. Nxd4 {[%emt 0:00:30]} Nf6 {[%emt 0:00:30]} 5. Nc3 {[%emt 0:00:00]} Nc6 {[%emt 0:00:00]} 6. Nxc6 {[%emt 0:00:00]} bxc6 {[%emt 0:00:00]} 7. e5 {[%emt 0:00:30]} Nd5 {[%emt 0:00:00]} 8. Ne4 {[%emt 0:00:30]} Qc7 {[%emt 0:00:00]} 9. f4 {[%emt 0:00:00]} Qa5+ {[%emt 0:00:30]} 10. Qd2 {[%emt 0:06:00]} Qb6 {[%emt 0:05:30]} 11. a3 {[%emt 0:03:30]} f5 {[%emt 0:00:30]} 12. exf6 {[%emt 0:00:30]} Nxf6 {[%emt 0:00:00]} 13. Nxf6+ {[%emt 0:02:30]} gxf6 {[%emt 0:00:00]} 14. Qc3 {[%emt 0:02:30]} Bc5 {[%emt 0:04:30]} 15. Qxf6 {[%emt 0:01:30]} Bd4 {[%emt 0:16:30]} 16. Qg5 {[%emt 0:01:30]} Bxb2 {[%emt 0:01:30]} 17. Bxb2 {[%emt 0:01:30]} Qxb2 {[%emt 0:00:00]} 18. Qe5 {[%emt 0:00:30]} Qxe5+ {[%emt 0:03:00]} 19. fxe5 {[%emt 0:00:30]} Rg8 {[%emt 0:00:00]} 20. O-O-O {[%emt 0:07:30]} c5 {[%emt 0:12:00]} 21. Bd3 {[%emt 0:02:30]} Bb7 {[%emt 0:00:30]} 22. Bxh7 {[%emt 0:03:30]} Rxg2 {[%emt 0:01:30]} 23. Rhg1 {[%emt 0:06:30]} Ke7 {[%emt 0:01:30]} 24. Rxg2 {[%emt 0:00:30]} Bxg2 {[%emt 0:00:00]} 25. Bd3 {[%emt 0:01:30]} Bd5 {[%emt 0:31:00]} 26. Rg1 {[%emt 0:01:30]} Rh8 {[%emt 0:06:47]} 27. Rg7+ {[%emt 0:01:30]} Kd8 {[%emt 0:00:27]} 28. Bh7 {[%emt 0:05:30]} Rf8 {[%emt 0:04:48]} 29. Rg8 {[%emt 0:00:30]} Rxg8 {[%emt 0:00:06]} 30. Bxg8 {[%emt 0:00:30]} Be4 {[%emt 0:00:08]} 31. Bf7 {[%emt 0:00:00]} Ke7 {[%emt 0:00:16]} 32. Bh5 {[%emt 0:00:00]} d6 {[%emt 0:00:40]} 33. exd6+ {[%emt 0:00:30]} Kxd6 {[%emt 0:00:02]} 34. Kd2 {[%emt 0:06:30]} Ke5 {[%emt 0:01:22]} 35. Bg4 {[%emt 0:00:00]} Kf6 {[%emt 0:03:41]} 36. Be2 {[%emt 0:03:00]} e5 {[%emt 0:00:59]} 37. Bd3 {[%emt 0:01:30]} Bd5 {[%emt 0:00:54]} 38. h4 {[%emt 0:01:30]} e4 {[%emt 0:03:45]} 39. Be2 {[%emt 0:01:30]} Bf7 {[%emt 0:00:49]} 40. Ke3 {[%emt 0:00:00]} Ke5 {[%emt 0:00:00]} 41. Bg4 {[%emt 0:01:00]} Be8 {[%emt 0:12:16]} 42. h5 {[%emt 0:00:30]} Bf7 {[%emt 0:01:30]} 43. h6 {[%emt 0:00:30]} Bg6 {[%emt 0:00:30]} 44. Bc8 {[%emt 0:00:30]} Bh7 {[%emt 0:00:30]} 45. Ba6 {[%emt 0:00:30]} Kf5 {[%emt 0:01:30]} 46. Bb7 {[%emt 0:03:30]} Ke5 {[%emt 0:00:30]} 47. c3 {[%emt 0:10:30]} Bg6 {[%emt 0:00:00]} 48. Ba8 {[%emt 0:01:30]} Bh7 {[%emt 0:00:00]} 49. Bc6 {[%emt 0:00:30]} Bg6 {[%emt 0:01:30]} 50. Bb7 {[%emt 0:00:00]} Bh7 {[%emt 0:00:30]} 51. Bc8 {[%emt 0:00:00]} Bg6 {[%emt 0:00:30]} 52. Bb7 {[%emt 0:00:30]} Bh7 {[%emt 0:00:30]} 53. Ba6 {[%emt 0:00:30]} Bg6 {[%emt 0:00:30]} 54. a4 {[%emt 0:00:00]} Bh7 {[%emt 0:01:30]} 55. a5 {[%emt 0:00:00]} Bg6 {[%emt 0:00:30]} 56. Bc4 {[%emt 0:00:30]} Bh7 {[%emt 0:00:00]} 57. Bb3 {[%emt 0:00:30]} Kf5 {[%emt 0:08:32]} 58. Bd5 {[%emt 0:00:00]} Ke5 {[%emt 0:04:58]} 59. c4 {[%emt 0:00:00]} Bf5 {[%emt 0:03:18]} 60. Bg8 {[%emt 0:00:30]} Kf6 {[%emt 0:00:22]} 61. Kf4 {[%emt 0:00:30]} Kg6 {[%emt 0:01:14]} 62. Bd5 {[%emt 0:00:30]} e3 {[%emt 0:00:53]} 63. Kxe3 {[%emt 0:00:30]} 1-0

[Event "CRO-ch 2019"]
[Site "Bjelovar"]
[Date "2019.04.11"]
[Round "11.5"]
[White "Zelcic, Robert"]
[Black "Saric, Ante"]
[Result "0-1"]
[ECO "B43"]
[WhiteElo "2520"]
[BlackElo "2530"]
[Annotator "ChessBase"]
[PlyCount "146"]
[EventDate "2019.04.01"]
[EventType "tourn"]
[EventCountry "CRO"]
[SourceTitle "playchess.com"]
[Source "ChessBase"]
[SourceQuality "1"]
[TimeControl "40/5400+30:1800+30"]

1. e4 {[%emt 0:00:30]} c5 {[%emt 0:00:30]} 2. Nf3 {[%emt 0:00:00]} e6 {[%emt 0:00:30]} 3. Nc3 {[%emt 0:01:00]} a6 {[%emt 0:00:30]} 4. d4 {[%emt 0:00:00]} cxd4 {[%emt 0:00:00]} 5. Nxd4 {[%emt 0:00:00]} Qc7 {[%emt 0:00:00]} 6. Bd3 {[%emt 0:00:30]} Nf6 {[%emt 0:00:30]} 7. O-O {[%emt 0:00:00]} d6 {[%emt 0:00:30]} 8. Qf3 {[%emt 0:01:00]} Nbd7 {[%emt 0:02:30]} 9. Qg3 {[%emt 0:00:30]} b5 {[%emt 0:03:30]} 10. a3 {[%emt 0:07:30]} g6 {[%emt 0:04:30]} 11. Kh1 {[%emt 0:06:30]} Nh5 {[%emt 0:06:30]} 12. Qh4 {[%emt 0:07:30]} Bg7 {[%emt 0:06:30]} 13. Be3 {[%emt 0:01:30]} O-O {[%emt 0:08:30]} 14. f4 {[%emt 0:04:30]} Bb7 {[%emt 0:01:30]} 15. f5 {[%emt 0:04:30]} Rae8 {[%emt 0:14:30]} 16. fxe6 {[%emt 0:03:30]} fxe6 {[%emt 0:00:30]} 17. Rxf8+ {[%emt 0:00:30]} Nxf8 {[%emt 0:04:30]} 18. Rf1 {[%emt 0:00:30]} Qe7 {[%emt 0:10:30]} 19. Bg5 {[%emt 0:02:30]} Qd7 {[%emt 0:00:30]} 20. Nb3 {[%emt 0:14:30]} h6 {[%emt 0:04:30]} 21. Be3 {[%emt 0:00:30]} Qe7 {[%emt 0:01:30]} 22. Qh3 {[%emt 0:02:30]} e5 {[%emt 0:05:30]} 23. a4 {[%emt 0:01:30]} Ne6 {[%emt 0:05:57]} 24. axb5 {[%emt 0:01:30]} Nef4 {[%emt 0:01:05]} 25. Bxf4 {[%emt 0:14:30]} Nxf4 {[%emt 0:00:12]} 26. Bc4+ {[%emt 0:06:08]} Kh7 {[%emt 0:00:19]} 27. Qe3 {[%emt 0:00:26]} axb5 {[%emt 0:00:11]} 28. Bxb5 {[%emt 0:01:24]} Rc8 {[%emt 0:00:13]} 29. Rd1 {[%emt 0:03:46]} Qg5 {[%emt 0:05:41]} 30. Qg3 {[%emt 0:02:15]} Qxg3 {[%emt 0:01:14]} 31. hxg3 {[%emt 0:00:02]} Nh5 {[%emt 0:00:08]} 32. Na5 {[%emt 0:08:19]} Ba8 {[%emt 0:01:13]} 33. Kh2 {[%emt 0:00:12]} Nf6 {[%emt 0:01:01]} 34. Rxd6 {[%emt 0:01:52]} Nxe4 {[%emt 0:00:19]} 35. Nxe4 {[%emt 0:00:04]} Bxe4 {[%emt 0:00:03]} 36. Bd3 {[%emt 0:01:20]} Bxd3 {[%emt 0:01:56]} 37. cxd3 {[%emt 0:00:00]} Rc2 {[%emt 0:00:57]} 38. b4 {[%emt 0:00:25]} Rb2 {[%emt 0:00:44]} 39. Nc6 {[%emt 0:00:37]} h5 {[%emt 0:00:25]} 40. Rd7 {[%emt 0:00:00]} Kh6 {[%emt 0:00:00]} 41. Rd5 {[%emt 0:05:10]} Bf6 {[%emt 0:22:01]} 42. b5 {[%emt 0:00:00]} Rb3 {[%emt 0:00:50]} 43. Kg1 {[%emt 0:10:00]} Kg7 {[%emt 0:00:22]} 44. Kf2 {[%emt 0:07:13]} Kf7 {[%emt 0:00:19]} 45. Na5 {[%emt 0:00:17]} Rb2+ {[%emt 0:02:56]} 46. Kf3 {[%emt 0:00:45]} Ke6 {[%emt 0:08:37]} 47. Nc4 {[%emt 0:06:48]} Rb1 {[%emt 0:03:31]} 48. Rd6+ {[%emt 0:00:00]} Kf5 {[%emt 0:00:53]} 49. b6 {[%emt 0:00:00]} Bg5 {[%emt 0:02:11]} 50. Rc6 {[%emt 0:00:27]} Rb3 {[%emt 0:02:22]} 51. Nd6+ {[%emt 0:06:19]} Ke6 {[%emt 0:00:02]} 52. Ne4+ {[%emt 0:00:00]} Kf5 {[%emt 0:00:06]} 53. Nd6+ {[%emt 0:01:17]} Ke6 {[%emt 0:00:02]} 54. Nc4+ {[%emt 0:00:42]} Kf5 {[%emt 0:00:33]} 55. Ke2 {[%emt 0:00:20]} Be7 {[%emt 0:02:03]} 56. Ne3+ {[%emt 0:00:21]} Kg5 {[%emt 0:00:01]} 57. Nd5 {[%emt 0:00:56]} Bf8 {[%emt 0:00:08]} 58. Rc8 {[%emt 0:02:17]} Bd6 {[%emt 0:00:44]} 59. Rc6 {[%emt 0:00:24]} Bf8 {[%emt 0:00:01]} 60. Nc3 {[%emt 0:00:08]} Rb2+ {[%emt 0:00:58]} 61. Kf3 {[%emt 0:00:12]} Be7 {[%emt 0:00:32]} 62. Re6 {[%emt 0:01:10]} Bd8 {[%emt 0:00:36]} 63. Nd5 {[%emt 0:00:21]} Kf5 {[%emt 0:00:24]} 64. Rd6 {[%emt 0:00:44]} Bg5 {[%emt 0:00:05]} 65. Nc3 {[%emt 0:00:32]} Be7 {[%emt 0:00:26]} 66. Rc6 {[%emt 0:00:22]} g5 {[%emt 0:00:13]} 67. g4+ {[%emt 0:00:47]} hxg4+ {[%emt 0:00:02]} 68. Kg3 {[%emt 0:00:23]} Rb3 {[%emt 0:01:08]} 69. Kh2 {[%emt 0:01:23]} Bd8 {[%emt 0:00:01]} 70. Ne4 {[%emt 0:00:43]} Rxb6 {[%emt 0:01:23]} 71. Ng3+ {[%emt 0:00:31]} Kf4 {[%emt 0:00:03]} 72. Rc8 {[%emt 0:00:10]} Rh6+ {[%emt 0:00:05]} 73. Kg1 {[%emt 0:00:10]} Bb6+ {[%emt 0:00:10]} 0-1